[Event "GER-ch Youth-U18 2022"]
[Site "Willingen"]
[Date "2022.06.07"]
[Round "4.14"]
[White "Dietlmeier, Tobias"]
[Black "Wehrle, Maximilian"]
[Result "1-0"]
[ECO "B24"]
[WhiteElo "1886"]
[BlackElo "1786"]
[Annotator "NA RC COMBH"]
[PlyCount "155"]
[EventDate "2022.06.05"]
[EventType "swiss"]
[EventRounds "9"]
[EventCountry "GER"]
[SourceTitle "playchess.com"]
[Source "ChessBase"]
[SourceQuality "1"]
[TimeControl "40/4500+30:900+30"]

1. e4 {[%emt 0:00:00]} c5 {[%emt 0:00:00]} 2. Nc3 {[%emt 0:00:00]} Nc6 {[%emt 0:00:00]} 3. Bb5 {[%emt 0:00:00]} a6 {[%emt 0:00:00]} 4. Bxc6 {[%emt 0:00:00]} bxc6 {[%emt 0:00:00]} 5. d4 {[%emt 0:00:00]} e6 {[%emt 0:00:00]} 6. Nf3 {[%emt 0:00:00]} d5 {[%emt 0:00:00]} 7. O-O {[%emt 0:02:30]} dxe4 {[%emt 0:02:41]} 8. Nxe4 {[%emt 0:01:15]} cxd4 {[%emt 0:00:31]} 9. Nxd4 {[%emt 0:03:34]} Bb7 {[%emt 0:00:39]} 10. Nb3 {[%emt 0:03:45]} Qd5 {[%emt 0:02:21]} 11. Nc3 {[%emt 0:03:57]} Qd8 {[%emt 0:02:06]} 12. Be3 {[%emt 0:04:27]} Nf6 {[%emt 0:00:55]} 13. Na4 {[%emt 0:14:29]} Nd5 {[%emt 0:02:42]} 14. Bc5 {[%emt 0:01:27]} Bxc5 {[%emt 0:00:57]} 15. Naxc5 {[%emt 0:01:44]} Qe7 {[%emt 0:01:42]} 16. Qf3 {[%emt 0:09:11]} O-O {[%emt 0:01:30]} 17. Rad1 {[%emt 0:01:47]} a5 {[%emt 0:02:22]} 18. c4 {[%emt 0:05:26]} Nf6 {[%emt 0:01:09] [#]} (18... a4 $1 $15 {keeps the upper hand.} 19. cxd5 (19. Nxb7 axb3 20. cxd5 cxd5 $15) 19... cxd5) 19. a4 $1 {[%emt 0:01:04]} Ba6 {[%emt 0:02:58]} 20. Qc3 {[%emt 0:07:25]} ({Stronger than} 20. Qxc6 Bxc4 21. Rfe1 Rab8 $17) 20... Rfd8 $2 {[%emt 0:02:21]} (20... Rfb8 $16 {might work better.}) 21. Rxd8+ {[%emt 0:01:08]} Qxd8 {[%emt 0:00:08]} 22. Nxa5 {[%emt 0:01:45]} Nd5 {[%emt 0:01:00]} 23. cxd5 {[%emt 0:07:13]} Bxf1 {[%emt 0:00:16]} 24. Nxc6 {[%emt 0:00:35]} ({Not} 24. Kxf1 Qxd5 25. f3 Rd8 $18) 24... Qc7 {[%emt 0:03:01]} 25. Kxf1 {[%emt 0:00:26]} exd5 {[%emt 0:00:08]} 26. Ne5 {[%emt 0:03:30]} f6 {[%emt 0:00:32]} 27. Nf3 {[%emt 0:00:55]} Qe7 {[%emt 0:01:18]} 28. Qe3 {[%emt 0:01:10]} Qd8 {[%emt 0:00:37]} 29. b4 {[%emt 0:01:50]} Kh8 {[%emt 0:00:24]} 30. Nd4 {[%emt 0:01:27]} Qb8 {[%emt 0:00:25]} 31. Nc6 {[%emt 0:05:01]} Qxh2 {[%emt 0:00:35]} 32. Qh3 {[%emt 0:00:50]} Qf4 {[%emt 0:00:37]} 33. Kg1 $2 {[%emt 0:01:21]} (33. g3 $18 Qf3 34. Ne7) 33... Qc1+ {[%emt 0:02:48]} 34. Kh2 {[%emt 0:00:15]} Qf4+ {[%emt 0:00:36]} 35. g3 {[%emt 0:01:08]} Qxf2+ {[%emt 0:00:21]} 36. Qg2 {[%emt 0:00:08]} Qf5 {[%emt 0:00:09]} 37. Nd4 {[%emt 0:01:22]} Qh5+ {[%emt 0:00:32]} 38. Qh3 {[%emt 0:00:37]} Qd1 {[%emt 0:00:13]} 39. Ncb3 {[%emt 0:00:52]} Re8 {[%emt 0:02:39]} 40. Qf5 {[%emt 0:01:16]} h6 {[%emt 0:01:22]} 41. Qf3 {[%emt 0:00:00]} Qe1 {[%emt 0:00:00]} 42. Qxd5 {[%emt 0:00:00]} (42. b5 $5 {[%cal Rh2g2]} Re3 43. Qg2 $14) 42... Re5 {[%emt 0:00:00]} 43. Qa8+ {[%emt 0:00:00]} Kh7 {[%emt 0:00:00]} 44. Qf3 {[%emt 0:00:00]} Qxb4 {[%emt 0:00:00]} 45. Nc6 {[%emt 0:00:00]} Qxa4 {[%emt 0:00:00]} 46. Nxe5 {[%emt 0:00:00]} fxe5 {[%emt 0:00:00]} 47. Nd2 {[%emt 0:03:11]} Qe8 {[%emt 0:00:00]} 48. Qe4+ {[%emt 0:01:07]} Kh8 {[%emt 0:00:00]} 49. Nf3 {[%emt 0:00:30]} Qe6 $18 {[%emt 0:00:00]} 50. Qxe5 {[%emt 0:01:07]} Qa2+ {[%emt 0:00:03]} 51. Kh3 {[%emt 0:01:25]} Qb1 {[%emt 0:00:14]} 52. Nh4 {[%emt 0:02:41]} Qh1+ {[%emt 0:00:12]} 53. Kg4 {[%emt 0:00:51]} Qd1+ {[%emt 0:00:05]} 54. Nf3 {[%emt 0:00:34]} Qa4+ {[%emt 0:00:30]} 55. Qd4 {[%emt 0:00:34]} Qc6 {[%emt 0:00:50]} 56. Ne5 {[%emt 0:01:38]} Qe6+ {[%emt 0:00:21]} 57. Kf4 {[%emt 0:01:21]} Qf6+ {[%emt 0:00:25]} 58. Ke4 {[%emt 0:00:43]} Qf1 {[%emt 0:02:25]} 59. Qd3 {[%emt 0:03:30]} Qe1+ {[%emt 0:00:18]} 60. Kf5 {[%emt 0:00:34]} Qf2+ {[%emt 0:00:29]} 61. Qf3 {[%emt 0:01:26]} Qc2+ {[%emt 0:00:26]} 62. Ke6 {[%emt 0:00:51]} Qc8+ {[%emt 0:00:16]} 63. Ke7 {[%emt 0:02:30]} Qc7+ {[%emt 0:00:10]} 64. Nd7 {[%emt 0:00:36]} Qc2 {[%emt 0:01:13]} 65. Qa8+ {[%emt 0:01:23]} Kh7 {[%emt 0:00:03]} 66. Nf8+ {[%emt 0:00:34]} Kh8 {[%emt 0:00:08]} 67. Ne6+ {[%emt 0:00:31]} Kh7 {[%emt 0:00:12]} 68. Qf8 {[%emt 0:00:44]} Qg6 {[%emt 0:00:59]} 69. Qf4 {[%emt 0:01:02]} Qd3 {[%emt 0:00:43]} 70. g4 {[%emt 0:00:28]} Qa3+ {[%emt 0:00:25]} 71. Kf7 {[%emt 0:00:35]} Qa7+ {[%emt 0:00:32]} 72. Qc7 {[%emt 0:00:39]} Qf2+ {[%emt 0:00:20]} 73. Ke8 {[%emt 0:00:14]} Qf6 {[%emt 0:00:17]} 74. Qf7 {[%emt 0:00:40]} Qe5 {[%emt 0:00:43]} 75. Qf5+ {[%emt 0:00:31]} Qxf5 {[%emt 0:00:18]} 76. gxf5 {[%emt 0:00:05]} h5 {[%emt 0:00:21]} 77. Kf7 {[%emt 0:00:56]} h4 {[%emt 0:00:12]} 78. Nxg7 {[%emt 0:00:29]} 1-0

[Event "GER-ch Youth-U18 2022"]
[Site "Willingen"]
[Date "2022.06.08"]
[Round "5.1"]
[White "Fromm, Marius"]
[Black "Pubantz, Jan"]
[Result "1-0"]
[ECO "B12"]
[WhiteElo "2317"]
[BlackElo "2265"]
[Annotator "TA"]
[PlyCount "77"]
[EventDate "2022.06.05"]
[EventType "swiss"]
[EventRounds "9"]
[EventCountry "GER"]
[SourceTitle "playchess.com"]
[Source "ChessBase"]
[SourceQuality "1"]
[TimeControl "40/4500+30:900+30"]

{[%evp 9,76,11,12,10,18,8,14,0,13,8,15,0,0,7,16,0,4,0,0,-8,0,0,0,0,0,0,0,-20,-9,-27,-28,-16,-16,-27,-6,-16,0,0,0,-5,0,0,0,-45,0,0,0,0,138,140,346,204,252,220,204,98,1291,1520,29994,1303,29990,29991,29993,29994,29994,29995,29995,29996,29999]} 1. e4 {[%emt 0:00:00][%cal Be2e4,Be4e5][%mdl 32]} c6 {[%emt 0:00:00]} 2. d4 {[%emt 0:00:00]} d5 {[%emt 0:00:00]} 3. e5 {[%emt 0:00:00]} Bf5 {[%emt 0:00:00]} 4. h4 {[%emt 0:00:00]} h5 {[%emt 0:00:00]} 5. Bd3 {[%emt 0:00:00]} Bxd3 {[%emt 0:00:00]} 6. Qxd3 {[%emt 0:00:00][%cal Oe5e6] B12: Caro-Kann: Advance Variation.} Qa5+ {[%emt 0:00:00]} 7. Nd2 {[%emt 0:00:00][%cal Oe5e6,Bb1d2,Bd2b3,Bb3c1,Bc1e2][%mdl 32] aiming for e6!} e6 {[%emt 0:00:00]} 8. Ngf3 {[%emt 0:00:00] The position is equal.} Nh6 {[%emt 0:00:00]} 9. O-O {[%emt 0:00:00]} Nf5 {[%emt 0:00:00]} 10. Nb3 $1 {[%emt 0:00:00][%mdl 4] is now more promising than 10.c4.} Qa6 {[%emt 0:00:00]} 11. Qd1 {[%emt 0:00:00]} b6 {[%emt 0:00:00]} 12. Bg5 {[%emt 0:00:00]} c5 {[%emt 0:01:52] [#]} 13. c3 $146 {[%emt 0:00:00]} ({Predecessor:} 13. dxc5 Bxc5 14. c3 Nc6 15. Nxc5 bxc5 16. Re1 Rc8 17. b3 Rc7 18. Rc1 Qxa2 19. Ra1 {½-½ (25) Dubov,D (2714)-Anton Guijarro,D (2669) Terme Catez 2021}) 13... Nc6 {[%emt 0:04:31]} 14. Nc1 {[%emt 0:00:00]} Be7 {[%emt 0:09:35]} 15. Bxe7 {[%emt 0:00:00]} Ncxe7 {[%emt 0:04:53]} 16. Ne2 {[%emt 0:00:42]} Rc8 {[%emt 0:06:02]} 17. Re1 {[%emt 0:11:02]} cxd4 {[%emt 0:24:50]} 18. cxd4 {[%emt 0:00:04]} Qc4 {[%emt 0:05:04]} 19. Qd2 {[%emt 0:16:48]} Qc2 {[%emt 0:00:39] White must now prevent ...Qxd2.} 20. Qb4 {[%emt 0:15:38]} O-O {[%emt 0:01:05]} 21. Qa3 {[%emt 0:00:32]} Ng6 {[%emt 0:12:07]} 22. g3 {[%emt 0:03:49]} Nh6 {[%emt 0:05:25]} 23. Rac1 {[%emt 0:09:21]} ({Much weaker is} 23. Qxa7 Qf5 24. Qa3 f6 $17) 23... Qf5 {[%emt 0:00:31]} 24. Ng5 {[%emt 0:00:33]} Rc2 {[%emt 0:05:07]} 25. Rxc2 {[%emt 0:02:45]} Qxc2 {[%emt 0:00:04]} 26. Qf3 {[%emt 0:00:02]} Ng4 {[%emt 0:04:53]} 27. Rc1 {[%emt 0:04:13]} Qxb2 {[%emt 0:00:01]} 28. Rc7 {[%emt 0:01:23][%csl LRa7,LRf7][%cal Rc7f7] Against Ne7} Qb1+ {[%emt 0:00:49]} (28... Qxa2 $11 29. Rxf7 Nh6 30. Rxf8+ Nxf8) 29. Kg2 $16 {[%emt 0:00:20][%cal Rc7f7] Dancing on a razor blade.} Nh8 {[%emt 0:00:36]} (29... Nh6 $16) 30. Rxa7 {[%emt 0:03:07]} (30. Nf4 $142 Ng6 31. Nxh5) 30... Qc2 {[%emt 0:00:34]} 31. Nf4 {[%emt 0:00:49]} g6 {[%emt 0:00:46]} 32. a4 {[%emt 0:01:36]} (32. a3 $18 {and White stays clearly on top.}) 32... Qc4 $2 {[%emt 0:01:18][%mdl 8192] [#]} (32... Re8 $16 33. Nd3 Rf8) 33. Nfxe6 $1 $18 {[%emt 0:03:52][%mdl 512]} fxe6 {[%emt 0:00:44] [#]} (33... Qf1+ 34. Kxf1) 34. Nxe6 $1 {[%emt 0:00:30]} Ne3+ {[%emt 0:00:30]} (34... Nf7 35. Nxf8) 35. Qxe3 {[%emt 0:00:54][%csl Ge6][%cal Ra7g7] White mates.} Rf7 {[%emt 0:00:32]} 36. Ra8+ {[%emt 0:00:10]} Kh7 {[%emt 0:00:14] [#]} 37. Rxh8+ $1 {[%emt 0:00:20]} Kxh8 {[%emt 0:00:10]} 38. Qh6+ {[%emt 0:00:03]} Rh7 {[%emt 0:00:26]} 39. Qf8# {[%emt 0:00:06] Weighted Error Value: White=0.14 (very precise) /Black=0.50} 1-0

[Event "GER-ch Youth-U18 2022"]
[Site "Willingen"]
[Date "2022.06.08"]
[Round "5.2"]
[White "Koelle, Tobias"]
[Black "von Mettenheim, Johannes"]
[Result "1/2-1/2"]
[ECO "E11"]
[WhiteElo "2431"]
[BlackElo "2176"]
[Annotator "TA"]
[PlyCount "169"]
[EventDate "2022.06.05"]
[EventType "swiss"]
[EventRounds "9"]
[EventCountry "GER"]
[SourceTitle "playchess.com"]
[Source "ChessBase"]
[SourceQuality "1"]
[TimeControl "40/4500+30:900+30"]

{[%evp 13,169,33,37,7,23,10,30,18,15,12,15,14,0,0,13,26,22,23,39,36,32,29,28,32,34,-27,0,-10,0,-32,1,5,320,320,320,320,320,284,302,247,256,258,366,356,433,433,337,341,332,294,542,542,542,542,542,492,678,653,848,840,767,590,762,625,612,293,293,293,293,293,286,286,286,286,286,286,286,286,286,0,286,286,286,286,286,286,286,286,286,286,286,286,286,286,293,286,286,216,409,409,409,409,409,409,409,409,409,409,409,409,409,409,409,409,409,409,409,409,409,409,409,409,409,409,409,409,409,409,409,409,409,409,409,0,409,409,409,409,409,409,409,409,409,409,409,409,409,251,409,409,409,409,409,251,409,251,409,409]} 1. d4 {[%emt 0:00:00]} Nf6 {[%emt 0:00:00]} 2. c4 {[%emt 0:00:00]} e6 {[%emt 0:00:00]} 3. Nf3 {[%emt 0:00:00]} Bb4+ {[%emt 0:00:00]} 4. Nbd2 {[%emt 0:00:00]} O-O {[%emt 0:00:00]} 5. a3 {[%emt 0:00:00]} Be7 {[%emt 0:00:00]} 6. e4 {[%emt 0:00:00][%cal Be2e4,Be4e5][%mdl 32]} d5 {[%emt 0:00:00]} 7. e5 {[%emt 0:00:00]} Nfd7 {[%emt 0:00:00]} 8. Bd3 {[%emt 0:00:00] E11: Bogo-Indian.} c5 $1 {[%emt 0:00:00]} 9. h4 {[%emt 0:00:00][%cal Od3h7] [#] And now Bxh7+! would win.} g6 $1 {[%emt 0:00:00]} 10. O-O $1 {[%emt 0:00:00][%mdl 4] White has an edge. is recently more successful than 10.h5.} (10. cxd5 {is interesting.} exd5 11. h5 cxd4 12. e6) 10... cxd4 {[%emt 0:00:00]} 11. cxd5 {[%emt 0:00:00]} exd5 {[%emt 0:00:00]} 12. Nb3 {[%emt 0:00:00][%cal Bd2b3,Bb3d4,Bd4f3][%mdl 32]} Nc6 {[%emt 0:00:00]} 13. Re1 {[%emt 0:00:00] [#]} Re8 $146 {[%emt 0:11:57]} ({Predecessor:} 13... Bxh4 14. Bb5 Re8 15. Nbxd4 Ndxe5 16. Bxc6 Nxf3+ 17. Nxf3 Rxe1+ 18. Qxe1 bxc6 19. Nxh4 Qxh4 {1-0 (27) Bogdanovich,S (2597)-Vavric,P (2348) Odessa 2019}) 14. h5 {[%emt 0:01:18]} Nf8 {[%emt 0:02:58]} 15. Nfxd4 {[%emt 0:01:16]} Nxd4 {[%emt 0:04:20]} 16. Nxd4 {[%emt 0:02:22][%cal Oe5e6]} Bc5 {[%emt 0:00:05]} 17. Bb5 {[%emt 0:17:32]} Bd7 {[%emt 0:00:30]} 18. Bxd7 {[%emt 0:00:28]} Qxd7 {[%emt 0:00:18]} 19. h6 {[%emt 0:09:12]} (19. Bg5 $14) 19... Rac8 {[%emt 0:19:10]} (19... Bxd4 $5 20. Qxd4 Ne6 $11) 20. Nf3 {[%emt 0:05:11]} d4 {[%emt 0:01:51]} 21. Bg5 {[%emt 0:08:11]} Qg4 {[%emt 0:02:21]} 22. Qd3 {[%emt 0:08:03]} Ne6 $2 {[%emt 0:00:40][%mdl 8192]} (22... Qd7 $11 {and Black is okay.}) 23. Re4 $18 {[%emt 0:02:22]} Qf5 {[%emt 0:00:06]} 24. g4 {[%emt 0:00:32]} Qxf3 {[%emt 0:00:12]} 25. Qxf3 {[%emt 0:00:08]} Nxg5 {[%emt 0:00:11]} 26. Qd3 {[%emt 0:02:08][%cal Oa1c1]} Nxe4 {[%emt 0:02:12]} 27. Qxe4 {[%emt 0:01:18]} Bd6 {[%emt 0:01:00]} (27... Bf8 $142 28. g5 (28. Qxd4 Bxh6 29. Qxa7 Bc1 $18) (28. Qxb7 Rcd8 $18) 28... d3) 28. Qxd4 {[%emt 0:06:52]} Bxe5 {[%emt 0:00:06]} 29. Qxa7 {[%emt 0:00:10]} Bxb2 {[%emt 0:00:15]} 30. Rb1 {[%emt 0:02:15]} Ra8 {[%emt 0:03:33]} 31. Qb6 {[%emt 0:00:42]} ({Don't take} 31. Qxb7 Bxa3 32. Qf3 Ra7 $18) 31... Bh8 {[%emt 0:06:17]} (31... Bc3 32. Kg2 (32. Qxb7 Bd2 $18) 32... Bh8) 32. Rb3 {[%emt 0:02:22]} Ra4 {[%emt 0:09:12]} 33. Rg3 {[%emt 0:03:16]} Rf4 {[%emt 0:04:50]} 34. Qxb7 {[%emt 0:07:17]} Bd4 {[%emt 0:00:34]} 35. Rf3 {[%emt 0:00:26]} Rxg4+ {[%emt 0:00:33]} 36. Kf1 {[%emt 0:00:06]} Rf8 {[%emt 0:10:03]} 37. a4 {[%emt 0:00:54]} Rh4 {[%emt 0:01:47]} 38. Qd5 {[%emt 0:00:34][%cal Of3f7] [#] Threatens to win with Rxf7!} Bb6 {[%emt 0:02:56]} 39. Qb3 {[%emt 0:03:39]} (39. Qd2 $142 Ba7 40. a5) 39... Ba7 {[%emt 0:02:47]} 40. a5 {[%emt 0:05:17] Hoping for Qb7.} Rxh6 {[%emt 0:00:16]} 41. Qb7 {[%emt 0:15:16]} Bc5 {[%emt 0:15:32]} 42. Rc3 {[%emt 0:01:27]} Rh5 {[%emt 0:01:43]} 43. a6 {[%emt 0:00:00]} Rf5 {[%emt 0:00:00]} 44. Rc2 {[%emt 0:00:00]} Bd4 {[%emt 0:00:00]} 45. Qd7 {[%emt 0:00:00]} Bb6 {[%emt 0:00:00]} 46. Qb7 {[%emt 0:00:00]} Bd4 {[%emt 0:00:00]} 47. Ra2 {[%emt 0:00:00] Inhibits Ra5.} Be3 {[%emt 0:00:00]} 48. a7 {[%emt 0:00:00]} Bxa7 {[%emt 0:00:00]} 49. Rxa7 {[%emt 0:00:00]} Re8 {[%emt 0:00:00]} 50. Qc7 {[%emt 0:00:00]} Kg7 {[%emt 0:00:00]} 51. Qc3+ {[%emt 0:00:00]} Kg8 {[%emt 0:00:00]} 52. Qd4 {[%emt 0:00:00]} Rfe5 {[%emt 0:00:00]} 53. Rd7 {[%emt 0:00:00]} Re1+ {[%emt 0:00:00]} 54. Kg2 {[%emt 0:00:00]} R1e5 {[%emt 0:00:00]} 55. Rd8 {[%emt 0:00:00]} Rxd8 $2 {[%emt 0:00:00]} (55... Re4) 56. Qxd8+ {[%emt 0:00:00][%mdl 4096] Endgame KQ-KR} ({Much less strong is} 56. Qxe5 Rd2 57. Kg3 Ra2 $18) 56... Kg7 {[%emt 0:00:00]} 57. Qd4 {[%emt 0:00:00] White wants to mate with f4.} f6 {[%emt 0:00:00]} 58. Qd7+ {[%emt 0:00:00]} Kg8 {[%emt 0:00:00]} 59. Kf3 {[%emt 0:00:00]} Rf5+ {[%emt 0:00:00]} 60. Ke3 {[%emt 0:00:00]} Re5+ {[%emt 0:00:00]} 61. Kd3 {[%emt 0:00:00]} Rf5 {[%emt 0:00:00]} 62. Qb7 {[%emt 0:00:00]} Rh5 {[%emt 0:00:00]} 63. Qe7 {[%emt 0:00:00]} Rd5+ {[%emt 0:00:00]} 64. Kc3 {[%emt 0:00:00] Intending Qe6+ and mate.} Rf5 {[%emt 0:00:00]} 65. f4 {[%emt 0:00:00]} Rh5 {[%emt 0:00:00]} 66. Kd4 {[%emt 0:00:00]} Rf5 {[%emt 0:00:00]} 67. Ke4 {[%emt 0:00:00]} Rh5 {[%emt 0:00:00]} 68. Kf3 {[%emt 0:00:00]} Rf5 {[%emt 0:00:00]} 69. Kg4 {[%emt 0:00:00]} Rh5 {[%emt 0:00:00]} 70. Qa7 {[%emt 0:00:00]} Rf5 {[%emt 0:00:00]} 71. Qa6 {[%emt 0:00:00]} Kg7 {[%emt 0:00:00]} 72. Qe6 {[%emt 0:00:01]} Rh5 {[%emt 0:00:00]} 73. Qe7+ {[%emt 0:01:31]} Kg8 {[%emt 0:00:00]} 74. Qxf6 {[%emt 0:00:04]} Rf5 {[%emt 0:00:00]} 75. Qd8+ {[%emt 0:00:17]} Kg7 {[%emt 0:00:00]} 76. Qe8 {[%emt 0:00:30]} Rh5 {[%emt 0:00:03]} 77. Kf3 {[%emt 0:00:04]} Rf5 {[%emt 0:00:08]} 78. Ke4 {[%emt 0:00:10]} Rh5 {[%emt 0:00:09]} 79. Kd4 {[%emt 0:00:06]} Rf5 {[%emt 0:00:06]} 80. Qa8 {[%emt 0:00:18] Black must now prevent Ke4.} Rh5 $2 {[%emt 0:00:05]} (80... Rxf4+ {was worth a try.} 81. Ke5 Rf5+ 82. Kd4 h5 83. Qb7+ Kh6) 81. Qa1 {[%emt 0:00:40]} Kg8 {[%emt 0:00:07]} 82. Qb1 {[%emt 0:00:29]} Rf5 {[%emt 0:00:08]} 83. Qe1 {[%emt 0:00:18] Qe4 is the strong threat.} Kg7 $2 {[%emt 0:00:05]} (83... Rxf4+ 84. Ke3 g5) 84. Qa1 {[%emt 0:00:38] Strongly threatening Qc1.} Kg8 $2 {[%emt 0:00:11]} (84... Rxf4+ 85. Kd5+ Rf6) 85. Qa8+ {[%emt 0:00:09][%mdl 32768] Weighted Error Value: White=0.27 (precise) /Black=0.30. An unexpected result.} 1/2-1/2

[Event "GER-ch Youth-U18 2022"]
[Site "Willingen"]
[Date "2022.06.08"]
[Round "5.4"]
[White "Weishaeutel, Moritz"]
[Black "Weihrauch, Jakob"]
[Result "1-0"]
[ECO "B22"]
[WhiteElo "2406"]
[BlackElo "2139"]
[Annotator "TA"]
[PlyCount "107"]
[EventDate "2022.06.05"]
[EventType "swiss"]
[EventRounds "9"]
[EventCountry "GER"]
[SourceTitle "playchess.com"]
[Source "ChessBase"]
[SourceQuality "1"]
[TimeControl "40/4500+30:900+30"]

{[%evp 16,107,29,28,34,0,19,27,41,37,35,36,48,30,47,18,33,45,32,29,77,65,81,81,129,48,110,104,102,81,119,113,124,127,133,108,164,160,204,200,203,194,187,188,341,341,553,538,685,663,738,731,725,731,716,709,956,947,957,669,687,678,646,616,699,664,779,763,873,812,1010,929,1677,883,701,584,809,610,1221,1091,1016,992,4212,3257,2415,1852,29956,12466,29974,29977,29981,29981,29988,29988]} 1. e4 {[%emt 0:00:00]} c5 {[%emt 0:00:00]} 2. c3 {[%emt 0:00:00]} Nf6 {[%emt 0:00:00]} 3. e5 {[%emt 0:00:00]} Nd5 {[%emt 0:00:00]} 4. Nf3 {[%emt 0:00:00]} Nc6 {[%emt 0:00:00]} 5. Bc4 {[%emt 0:00:00]} Nb6 {[%emt 0:00:00]} 6. Bb3 {[%emt 0:00:00]} c4 {[%emt 0:00:00]} 7. Bc2 {[%emt 0:00:00]} d6 {[%emt 0:00:00]} 8. exd6 {[%emt 0:00:00]} Qxd6 {[%emt 0:00:00]} 9. O-O {[%emt 0:00:00][%cal Bh1f1,Bf1e1,Be1e5][%mdl 32]} Bg4 {[%emt 0:00:00] B22: Sicilian: 2 c3.} 10. h3 {[%emt 0:00:00]} Bh5 {[%emt 0:00:10]} 11. Re1 {[%emt 0:00:00] Against Ne5} Ne5 {[%emt 0:10:20] [#] ...Nxf3+ is the strong threat. White has an edge.} 12. Rxe5 {[%emt 0:00:00]} Bxf3 {[%emt 0:00:05]} 13. Qe1 {[%emt 0:00:00]} Bc6 {[%emt 0:05:11]} 14. b3 {[%emt 0:00:00]} e6 {[%emt 0:07:52] [#]} 15. Ba3 $146 {[%emt 0:00:00]} ({Predecessor:} 15. Na3 cxb3 16. axb3 Nd7 17. Nc4 Qc7 18. Re3 b5 19. Na5 Bd5 20. c4 Bc5 21. cxd5 Bxe3 22. Qxe3 Qxc2 23. dxe6 Nf8 24. Qf3 O-O-O 25. Qb7# {1-0 (25) Potapov,P (2493)-Morozevich,A (2683) Sochi 2016}) 15... Qc7 {[%emt 0:01:42]} 16. Bxf8 {[%emt 0:00:00]} (16. Be4 {feels hotter.} Bd6 17. Bxc6+ Qxc6 18. Rxe6+ fxe6 19. Qxe6+ Kd8 20. Qxd6+ Qxd6 21. Bxd6 Kd7 22. Bc5) 16... Kxf8 {[%emt 0:00:42]} 17. Na3 $36 {[%emt 0:00:00][%cal Bb1a3,Ba3b5,Bb5d4,Bd4f5,Bf5e3][%mdl 2080] White is pushing.} Bd5 {[%emt 0:15:41]} (17... Nd7 $11 18. Re3 cxb3 19. axb3 g6) 18. Nb5 $16 {[%emt 0:05:12]} Qd7 {[%emt 0:06:17]} 19. Nd4 {[%emt 0:00:06]} Qd6 {[%emt 0:04:18]} (19... f6 $142 20. Nxe6+ Kf7 21. Rxd5 (21. Nc5 Qd6 $11) 21... Nxd5) 20. Qe2 {[%emt 0:08:38]} ({Better is} 20. d3 $16) 20... f6 {[%emt 0:09:02]} (20... g6 $14) 21. Re3 {[%emt 0:09:40][%cal Rd4e6] White is more active.} (21. Nxe6+ {is more complex.} Kf7 22. Rxd5 Nxd5 23. Nd4) 21... e5 {[%emt 0:04:04]} 22. Nf5 {[%emt 0:00:11]} Qd7 {[%emt 0:01:01]} 23. Rg3 {[%emt 0:05:53]} g6 {[%emt 0:02:04]} 24. Ne3 {[%emt 0:02:05]} Rc8 {[%emt 0:03:44]} 25. h4 {[%emt 0:10:21]} Be6 {[%emt 0:06:45]} (25... Bf7 $16) 26. h5 $18 {[%emt 0:02:13]} g5 {[%emt 0:01:05]} 27. Qf3 {[%emt 0:05:42][%csl LRf6,LRg5]} Qf7 {[%emt 0:01:29]} 28. Bf5 {[%emt 0:00:28]} Bxf5 {[%emt 0:00:27]} 29. Qxf5 {[%emt 0:01:18]} ({Don't do} 29. Nxf5 $6 Qd5 $14) 29... Rd8 $2 {[%emt 0:02:21]} (29... Rc6 {might work better.} 30. bxc4 h6) 30. bxc4 {[%emt 0:03:24][%cal Bb3c4,Bc4c5][%mdl 32]} Rxd2 $2 {[%emt 0:00:52]} (30... Nc8 31. Rf3 Nd6 32. Qxf6 Qxf6) 31. Rb1 {[%emt 0:00:16]} h6 {[%emt 0:03:11]} 32. c5 {[%emt 0:10:52]} Nd5 {[%emt 0:00:21]} 33. Qc8+ {[%emt 0:03:00]} Qe8 {[%emt 0:00:21]} 34. Qxe8+ {[%emt 0:02:18]} Kxe8 {[%emt 0:00:01]} 35. Nc4 {[%emt 0:00:09]} Rc2 {[%emt 0:01:40]} 36. Rxb7 {[%emt 0:00:08] [#] aiming for Rd3.} Nxc3 {[%emt 0:00:34]} 37. Rb8+ {[%emt 0:03:16]} Ke7 {[%emt 0:00:42]} 38. Rxh8 {[%emt 0:00:07]} Ne2+ {[%emt 0:00:07]} 39. Kh2 {[%emt 0:00:03]} Rxc4 {[%emt 0:01:27][%mdl 4096] Endgame KRR-KRN} 40. Ra3 {[%emt 0:00:22]} Rh4+ {[%emt 0:00:08]} 41. Rh3 {[%emt 0:15:05]} Rf4 {[%emt 0:15:27]} 42. Rxh6 {[%emt 0:00:57]} g4 {[%emt 0:00:47]} 43. Ra3 {[%emt 0:01:13] Ra6 would kill now.} Rxf2 {[%emt 0:00:24]} 44. Rxa7+ {[%emt 0:06:46]} Ke6 {[%emt 0:00:07]} 45. Rg6 {[%emt 0:09:21]} Kf5 {[%emt 0:00:00]} 46. Rf7 {[%emt 0:00:00]} g3+ {[%emt 0:00:00]} 47. Rxg3 {[%emt 0:00:00]} ({Inferior is} 47. Kh3 Nf4+ 48. Kxg3 Rxg2+ 49. Kf3 e4+ 50. Ke3 Nxg6 51. hxg6 Kxg6 $11) 47... Nxg3 {[%emt 0:00:00] KRN-KR} 48. h6 {[%emt 0:00:00][%cal Bh5h6,Bh6h7][%mdl 32]} Rxa2 {[%emt 0:00:00]} 49. h7 {[%emt 0:00:00]} Nf1+ {[%emt 0:00:00]} 50. Kg1 {[%emt 0:00:00]} Ra8 {[%emt 0:00:01]} 51. Kxf1 {[%emt 0:00:00] Threatening mate with Rg7.} Kg6 {[%emt 0:00:52]} 52. Rd7 {[%emt 0:00:00] White mates.} Ra1+ {[%emt 0:03:13]} 53. Kf2 {[%emt 0:00:00]} Rh1 {[%emt 0:00:12]} 54. c6 {[%emt 0:00:00] Weighted Error Value: White=0.26 (precise) /Black=0.42} 1-0